bitfinex/quotes_ETHUSD_20251218
["timestamp","ask_amount","ask_price","bid_price","bid_amount"]
[1766082286543,0.001,2853.1,2852.5,0.568]
[1766082286775,0.001,2853.1,2851.8,5.0466]
[1766082286944,0.001,2853.1,2852.1,0.46438023]
[1766082287150,6.9659,2853.0,2852.1,0.46438023]
[1766082287476,0.001,2853.1,2852.3,10.39551945]
[1766082287673,0.001,2853.1,2852.4,3.5058011]
[1766082287884,0.001,2853.1,2852.4,10.9634011]
[1766082288559,0.001,2853.1,2852.4,7.4576]
[1766082288976,6.9659,2853.0,2852.4,0.568]
[1766082289782,0.001,2853.1,2852.0,0.002]
[1766082289964,1.8762,2852.7,2852.0,0.002]
[1766082290163,5.0897,2852.0,2851.1,3.5073563]
[1766082290385,6.9659,2852.4,2851.3,6.8896]
[1766082290585,6.9659,2852.4,2851.4,5.8143685]
[1766082290892,6.9659,2852.4,2851.4,10.8609685]
[1766082291187,0.07357578,2852.3,2851.4,10.8609685]
[1766082291489,0.07357578,2852.3,2851.4,14.36801766]
[1766082291695,0.07357578,2852.3,2851.5,6.8896]
[1766082291902,0.07357578,2852.5,2851.6,0.568]
[1766082292063,0.07357578,2852.7,2851.9,6.8896]
[1766082292268,0.07357578,2852.7,2851.6,0.568]
[1766082292269,0.07357578,2852.5,2851.6,0.568]
[1766082292468,0.07357578,2852.5,2851.5,0.46438023]
[1766082292469,0.07357578,2852.3,2851.7,0.568]
[1766082292769,0.07357578,2852.3,2851.8,6.8896]
[1766082293186,0.07357578,2852.3,2851.8,7.4576]
[1766082293664,0.07357578,2852.3,2851.8,10.9641158]
[1766082294699,0.001,2853.1,2851.9,0.46438023]
[1766082294914,0.001,2853.1,2851.9,0.49944457]
[1766082295191,0.001,2853.1,2852.0,0.568]
[1766082295393,0.001,2853.1,2852.6,6.8896]
[1766082295693,0.001,2853.4,2852.6,10.96307664]
[1766082295913,0.07457578,2853.5,2852.7,0.46438023]
[1766082296064,0.07457578,2853.5,2852.9,1.843]
[1766082296393,0.07457578,2853.5,2852.7,0.46438023]
[1766082296628,1.95077578,2853.5,2852.8,0.568]
[1766082297128,1.95077578,2853.5,2852.7,0.46438023]
[1766082297129,7.03947578,2853.3,2852.7,0.568]
[1766082297337,7.03947578,2853.3,2852.5,3.97001756]
[1766082297700,7.03947578,2853.3,2852.7,0.46438023]
[1766082297901,7.03947578,2853.3,2852.6,0.46438023]
[1766082298403,7.03947578,2853.3,2852.5,0.46438023]
[1766082298707,0.07357578,2853.3,2852.5,0.46438023]
[1766082298912,0.07357578,2853.3,2852.7,0.46438023]
[1766082299134,0.07357578,2853.3,2852.7,6.8896]
[1766082299834,0.07357578,2853.3,2852.7,10.39500852]
[1766082300634,6.9659,2853.0,2852.0,6.8896]
[1766082300836,7.03947578,2852.7,2851.8,3.50847705]
[1766082301036,7.03947578,2852.7,2851.8,3.50852656]
[1766082301228,7.03947578,2852.7,2851.9,3.50637329]
[1766082301412,0.64157578,2852.9,2852.3,5.1804]
[1766082301612,6.95667578,2853.3,2852.0,7.0607]
[1766082301613,6.95667578,2853.0,2852.0,7.0607]
[1766082301931,6.8831,2852.7,2852.0,1.03238023]
[1766082302122,0.07357578,2852.8,2852.2,0.46438023]
[1766082302446,0.07357578,2852.8,2852.0,3.97058832]
[1766082302654,5.1086,2852.5,2851.8,0.002]
[1766082302830,6.8831,2852.5,2851.8,0.002]
[1766082303155,6.8831,2852.5,2851.9,3.50638676]
[1766082303448,6.8831,2852.5,2851.8,3.97288553]
[1766082303651,6.8831,2852.5,2851.8,0.002]
[1766082303854,6.8831,2852.5,2851.8,3.50849569]
[1766082304454,0.07357578,2852.8,2851.9,5.1804]
[1766082304659,0.07357578,2852.8,2852.0,7.0607]
[1766082305150,0.07357578,2852.8,2851.8,3.50849569]
[1766082305450,6.8831,2852.7,2851.9,0.568]
[1766082305753,6.95667578,2852.6,2851.8,0.002]
[1766082305919,0.07357578,2852.6,2851.8,2.34668023]
[1766082306256,0.568,2852.9,2851.8,2.34668023]
[1766082306257,0.568,2852.9,2852.0,1.8803]
[1766082306471,0.001,2853.3,2852.6,1.8803]
[1766082306749,0.001,2853.3,2852.1,9.32375511]
[1766082306750,0.001,2853.3,2852.8,7.0607]
[1766082308166,0.001,2853.5,2852.7,0.568]
[1766082308338,0.568,2853.9,2853.1,7.0607]
[1766082308535,0.001,2854.2,2853.6,1.8803]
[1766082308844,0.07357578,2854.6,2853.5,0.568]
[1766082309054,0.07357578,2854.6,2853.0,7.0607]
[1766082309343,0.07357578,2854.6,2853.0,1.03238023]
[1766082309344,0.07357578,2854.0,2853.0,1.03238023]
[1766082309555,0.001,2853.3,2853.0,0.46438023]
[1766082309732,0.001,2853.3,2852.9,0.46438023]
[1766082310761,0.001,2853.3,2851.8,8.75775511]
[1766082310963,6.95667578,2853.1,2852.1,3.50618516]
[1766082311129,6.8831,2853.0,2852.1,4.0741819]
[1766082311334,6.8831,2853.0,2852.4,3.50580305]
[1766082311534,6.8831,2853.0,2852.3,3.9703018]
[1766082311734,0.07357578,2853.1,2851.8,0.002]
[1766082311965,6.8831,2852.6,2851.8,0.002]
[1766082313435,6.8831,2852.6,2851.8,0.57]
[1766082313664,6.8831,2852.6,2851.8,1.03438023]
[1766082314438,1.9101,2851.7,2850.9,0.57]
[1766082314674,5.19301,2851.6,2850.9,0.57]
[1766082314836,0.07357578,2851.9,2850.9,7.58529211]
[1766082315033,7.55367578,2852.1,2851.2,1.8226]
[1766082315282,6.9121,2852.0,2851.1,4.9309]
[1766082315497,6.9121,2851.9,2850.9,2.3926]
[1766082315675,6.98567578,2851.9,2850.9,5.33224918]
[1766082315882,6.98567578,2851.9,2850.9,8.83991342]
[1766082316293,1.9101,2851.7,2850.9,0.002]
[1766082316454,5.002,2851.3,2851.2,0.002]
[1766082316659,5.002,2851.3,2850.6,3.50995552]
[1766082316868,0.07357578,2851.5,2850.7,3.50786916]
[1766082317073,2.55167578,2851.7,2850.8,0.568]
[1766082317289,1.98367578,2851.7,2850.8,0.568]
[1766082317593,5.002,2851.4,2850.6,0.57]
[1766082317796,0.07357578,2851.3,2850.1,0.002]
[1766082318092,6.9121,2851.0,2850.1,0.002]
[1766082318260,0.07357578,2851.1,2850.3,0.46438023]
[1766082318455,0.07357578,2851.1,2850.4,3.50827359]
[1766082319060,0.07357578,2851.1,2850.3,5.79532886]
[1766082319882,6.9121,2851.3,2850.4,7.3215]
[1766082320265,6.9121,2851.3,2850.4,10.82972685]
[1766082320969,0.53795601,2852.1,2850.7,4.9309]
[1766082321188,0.07357578,2851.9,2851.0,6.7535]
[1766082321390,0.07357578,2851.9,2850.7,0.568]
[1766082321391,5.002,2851.6,2850.7,0.568]
[1766082321689,6.9121,2851.4,2850.5,0.568]
[1766082322067,0.07357578,2851.1,2849.8,7.3235]
[1766082322268,0.568,2851.4,2850.2,4.9309]
[1766082322489,6.9121,2851.6,2850.3,1.06129]
[1766082322690,0.07357578,2851.9,2850.9,6.7535]
[1766082322897,6.98567578,2851.9,2851.0,0.568]
[1766082323493,6.9121,2851.8,2851.0,0.568]
[1766082323692,0.53795601,2851.9,2851.0,0.57]
[1766082323995,6.9121,2851.5,2850.6,6.7535]
[1766082324195,0.568,2851.6,2850.6,0.73215]
[1766082324500,0.07357578,2851.9,2850.9,4.9309]
[1766082324704,0.07357578,2851.9,2851.0,6.7535]
[1766082324880,0.568,2852.1,2851.3,1.8226]
[1766082325065,0.07357578,2852.3,2851.2,0.568]
[1766082325066,5.002,2852.2,2851.2,0.568]
[1766082325271,1.98367578,2852.3,2851.1,1.03238023]
[1766082325272,6.9121,2852.1,2851.1,1.03238023]
[1766082325469,6.9121,2852.1,2851.1,1.81096825]
[1766082325688,6.9121,2852.1,2851.1,8.10008802]
[1766082325893,0.07357578,2852.3,2851.3,4.9309]
[1766082326195,0.07357578,2852.3,2851.1,1.34658802]
[1766082326196,0.07357578,2852.3,2851.4,6.7535]
[1766082326395,0.07357578,2852.3,2851.5,1.8226]
[1766082326605,6.9121,2852.7,2851.7,6.7535]
[1766082327007,0.53795601,2852.7,2851.6,0.88366162]
[1766082327173,0.07357578,2852.7,2851.5,2.3906]
[1766082327373,1.9101,2852.7,2851.8,4.9309]
[1766082327572,1.9101,2852.7,2851.5,0.46438023]
[1766082327818,1.9101,2852.4,2851.5,2.85498023]
[1766082327969,7.4801,2852.8,2851.7,6.7535]
[1766082328369,0.568,2852.8,2851.8,3.50655726]
[1766082328592,6.9121,2852.7,2851.8,3.50655726]
[1766082329078,0.568,2852.8,2852.0,4.9309]
[1766082329277,0.568,2852.8,2852.1,6.7535]
[1766082329506,0.568,2853.1,2852.3,6.7535]
[1766082329668,7.4801,2853.1,2852.0,6.7535]
[1766082329873,0.568,2853.1,2852.0,6.7535]
[1766082330075,6.9121,2852.9,2852.0,6.7535]
[1766082330303,6.9121,2852.9,2851.9,0.568]
[1766082330509,6.9121,2853.0,2851.9,0.75811145]
[1766082330803,6.9121,2852.4,2851.6,0.46438023]
[1766082331111,0.001,2852.3,2851.8,0.46438023]
[1766082331409,0.001,2852.3,2851.6,3.97112108]
[1766082332805,0.001,2852.3,2851.6,3.50680181]
[1766082332981,6.9131,2852.3,2851.5,6.7535]
[1766082333182,6.9131,2852.3,2851.5,10.26031498]
[1766082333416,6.9131,2852.3,2851.5,6.7535]
[1766082334059,6.9131,2852.3,2851.6,3.50678455]
[1766082334199,6.9131,2852.3,2851.5,10.26035847]
[1766082334508,0.001,2852.3,2851.7,4.9309]
[1766082334688,0.567,2853.1,2852.3,6.7535]
[1766082334880,0.567,2853.1,2852.2,3.50600176]
[1766082335081,6.9121,2853.0,2851.8,0.46438023]
[1766082335324,0.567,2853.1,2852.3,5.32854257]
[1766082335623,0.567,2853.1,2852.3,10.29136343]
[1766082335804,0.567,2853.1,2852.1,0.567]
[1766082336005,6.9121,2853.0,2852.1,4.0731349]
[1766082336209,0.567,2853.1,2852.0,3.97065548]
[1766082336399,6.9121,2852.9,2851.8,7.78488023]
[1766082336589,6.9121,2852.9,2852.1,3.50617522]
[1766082336789,6.9121,2852.9,2852.0,0.46438023]
[1766082337004,6.9121,2852.9,2852.0,7.21788023]
[1766082337800,0.567,2853.0,2852.0,2.28698023]
[1766082338132,6.9121,2852.8,2852.0,0.46438023]
[1766082338812,0.567,2853.0,2852.0,0.46438023]
[1766082339119,6.9121,2852.7,2851.9,0.567]
[1766082339322,0.07357578,2852.9,2851.8,0.46438023]
[1766082339521,6.9121,2852.6,2851.8,1.03138023]
[1766082340403,6.9121,2852.6,2851.8,4.53791623]
[1766082340920,6.9121,2852.6,2851.8,1.03138023]
[1766082341122,6.9121,2852.6,2851.8,4.53789575]
[1766082341297,6.9121,2852.6,2851.8,1.03138023]
[1766082341494,0.567,2852.5,2851.1,7.53208802]
[1766082341827,0.46438023,2852.7,2851.9,6.7535]
[1766082341995,0.567,2852.7,2851.9,6.7535]
[1766082342721,0.567,2852.8,2851.6,3.50674647]
[1766082342921,6.6719,2852.4,2851.6,4.53808643]
[1766082343125,6.74547578,2852.7,2851.7,6.9471]
[1766082343428,0.001,2853.0,2852.1,5.0694]
[1766082343594,0.001,2853.0,2852.3,6.9471]
[1766082344043,0.001,2853.0,2852.4,0.03505819]
[1766082344196,0.001,2853.3,2852.7,6.9471]
[1766082344533,0.001,2853.3,2852.4,6.9471]
[1766082344703,0.001,2853.3,2851.6,14.02711577]
[1766082344704,4.8243,2853.2,2852.3,0.46438023]
[1766082344903,0.001,2853.3,2852.3,0.46438023]
[1766082345107,0.001,2853.3,2851.3,9.13965748]
[1766082345108,0.001,2853.3,2851.4,5.0694]
[1766082345308,0.001,2853.3,2852.0,3.5062675]
[1766082345309,1.8476,2852.7,2852.0,3.5062675]
[1766082345497,6.6719,2852.7,2852.0,4.53763023]
[1766082345715,6.6719,2852.7,2852.0,3.97063023]
[1766082345921,6.6719,2852.7,2852.0,4.53763023]
[1766082346316,6.6719,2852.7,2851.9,0.46438023]
[1766082346514,6.6719,2852.7,2851.9,1.03138023]
[1766082346722,6.6719,2852.7,2851.8,4.53791633]
[1766082346926,4.8243,2852.5,2851.3,1.8777]
[1766082347135,2.31198023,2852.7,2851.7,5.0694]
[1766082347298,2.31198023,2852.7,2852.0,0.002]
[1766082347495,0.46438023,2852.7,2852.0,0.002]
[1766082347795,4.8243,2852.6,2851.4,0.567]
[1766082348105,7.08455304,2852.7,2851.4,0.567]
[1766082348106,6.6719,2852.1,2851.4,0.567]
[1766082348308,6.6719,2852.1,2851.2,3.50723602]
[1766082348309,0.567,2852.3,2851.2,3.50723602]
[1766082348510,4.8243,2852.0,2851.1,10.45446269]
[1766082348736,0.567,2852.3,2850.8,0.002]
[1766082348737,0.64057578,2852.3,2850.8,0.002]
[1766082349031,6.6719,2851.6,2850.8,0.569]
[1766082349242,1.8476,2851.5,2850.8,0.002]
[1766082349401,0.18476,2851.4,2850.8,0.002]
[1766082349604,6.85666,2851.4,2850.8,0.002]
[1766082350098,0.567,2851.8,2850.8,0.002]
[1766082350099,7.2389,2851.8,2850.8,6.9491]
[1766082350300,1.8476,2852.4,2851.3,1.8777]
[1766082350547,0.46438023,2852.5,2851.5,6.9471]
[1766082350840,0.46438023,2852.4,2851.5,6.9471]
[1766082351136,1.8476,2852.4,2851.1,0.46438023]
[1766082351320,1.8476,2852.4,2850.8,0.002]
[1766082351321,1.8476,2852.1,2850.8,0.002]
[1766082351529,6.6719,2851.9,2851.1,3.50740966]
[1766082352702,6.6719,2851.9,2851.0,3.50747121]
[1766082353011,1.8476,2851.9,2850.9,3.97204447]
[1766082353212,4.8243,2851.8,2850.9,3.97204447]
[1766082353936,4.8243,2851.8,2850.9,7.47970871]
[1766082354246,6.6719,2851.6,2850.8,4.54114585]
[1766082354404,0.567,2851.6,2850.8,0.002]
[1766082354605,0.567,2851.6,2850.5,0.002]
[1766082354606,1.8476,2851.0,2850.5,0.002]
[1766082354802,0.07357578,2851.3,2850.5,0.002]
[1766082354803,6.85666,2850.9,2850.5,0.002]
[1766082355111,6.85666,2850.9,2850.1,4.07764881]
[1766082355307,0.18476,2850.9,2850.1,0.002]
[1766082355509,6.6719,2850.8,2850.1,3.51063128]
[1766082355747,0.46438023,2851.1,2850.1,3.51063128]
[1766082355952,1.8476,2850.8,2849.8,0.002]
[1766082356232,6.6719,2850.2,2849.7,0.002]
[1766082356420,0.64057578,2850.7,2849.7,0.002]
[1766082356658,0.64057578,2850.7,2849.4,0.569]
[1766082356659,1.8476,2850.0,2848.8,3.5101818]
[1766082356856,0.18476,2849.9,2848.9,0.567]
[1766082357084,4.8243,2849.7,2848.6,3.51049638]
[1766082357296,0.567,2850.0,2848.6,7.58799276]
[1766082357452,6.6719,2849.8,2848.8,5.0694]
[1766082357979,6.6719,2849.8,2848.9,0.46438023]
[1766082358151,6.6719,2849.8,2848.8,6.9471]
[1766082358350,0.07357578,2849.9,2848.7,0.002]
[1766082358567,1.8476,2849.5,2848.7,0.002]
[1766082358882,0.567,2849.6,2848.7,0.002]
[1766082359041,1.8476,2849.3,2848.7,0.002]
[1766082359240,0.567,2849.2,2848.5,0.002]
[1766082359448,6.6719,2849.1,2848.5,0.002]
[1766082359652,4.8243,2849.4,2848.4,0.002]
[1766082359855,0.567,2849.4,2848.4,0.002]
[1766082360066,6.6719,2849.2,2848.4,0.002]
[1766082360540,0.567,2849.4,2848.4,0.002]
[1766082360743,0.567,2849.4,2848.6,1.8777]
[1766082360944,1.03138023,2849.9,2848.8,6.3788]
[1766082361237,1.7309,2849.5,2848.6,0.46438023]
[1766082361468,6.3132,2849.3,2848.4,0.002]
[1766082361671,6.3132,2849.3,2848.7,3.97469503]
[1766082361879,6.3132,2849.3,2848.6,0.46438023]
[1766082362243,6.3132,2849.3,2848.4,0.002]
[1766082362470,0.567,2849.4,2848.4,0.002]
[1766082362643,6.3132,2849.4,2848.6,3.51043913]
[1766082362838,0.567,2849.6,2848.8,3.51024992]
[1766082363245,6.3132,2849.7,2848.7,10.45612555]
[1766082363463,6.3132,2850.2,2848.8,6.84318023]
[1766082363655,0.64057578,2850.1,2848.8,0.46438023]
[1766082363855,4.5823,2850.0,2848.8,0.46438023]
[1766082364072,6.3132,2849.8,2848.8,0.46438023]
[1766082364371,4.5823,2849.8,2848.8,0.46438023]
[1766082364547,6.3132,2849.7,2848.8,1.26958812]
[1766082364950,6.3132,2849.7,2848.8,7.64838812]
[1766082365249,6.3132,2849.7,2849.0,0.46438023]
[1766082365444,6.3132,2850.0,2849.0,0.46438023]
[1766082365666,0.567,2849.9,2849.0,0.46438023]
[1766082365974,3.5078276,2850.8,2849.0,0.46438023]
[1766082365975,6.3132,2850.5,2849.1,1.31546337]
[1766082366275,6.8802,2850.5,2849.6,6.3788]
[1766082366471,6.3132,2850.5,2849.6,6.3788]
[1766082366773,2.2979,2850.8,2849.6,4.592]
[1766082366974,6.8802,2850.8,2849.7,6.8947]
[1766082367272,6.8802,2850.8,2849.7,10.40376581]
[1766082367576,6.8802,2850.8,2849.7,7.53410712]
[1766082367773,6.8802,2851.1,2850.0,0.46438023]
[1766082367976,6.3132,2851.0,2850.0,1.03138023]
[1766082368178,0.567,2850.9,2850.0,1.77239825]
[1766082368474,0.567,2850.9,2850.0,1.03138023]
[1766082368674,6.3132,2850.8,2850.0,0.567]
[1766082369170,6.3132,2850.8,2850.1,3.50864881]
[1766082370046,0.567,2851.4,2850.4,6.3788]
[1766082370251,0.567,2851.4,2850.4,6.9458]
[1766082370448,6.8802,2851.4,2850.4,7.64038]
[1766082370647,6.3132,2851.3,2850.4,7.64038]
[1766082371486,4.5823,2851.1,2850.4,1.26158]
[1766082371730,0.567,2851.4,2850.5,6.84318023]
[1766082373009,1.6873,2851.3,2850.4,1.03138023]
[1766082373343,0.567,2851.4,2850.6,3.50803339]
[1766082373506,0.567,2851.4,2850.6,13.46976678]
[1766082373710,0.567,2851.5,2850.6,13.46976678]
[1766082373919,0.567,2851.5,2850.6,11.41184809]
[1766082374100,0.567,2851.5,2850.7,6.4537]
[1766082374301,0.46538023,2852.0,2850.9,6.4537]
[1766082374302,6.5196,2852.0,2850.9,6.4537]
[1766082374497,6.5186,2851.9,2850.8,7.0207]
[1766082374693,0.001,2852.0,2851.1,4.6534]
[1766082374893,0.001,2852.0,2851.2,7.0207]
[1766082376040,6.5196,2852.0,2851.2,0.567]
[1766082376239,4.8313,2851.7,2851.0,0.46438023]
[1766082376412,6.5186,2851.9,2851.0,0.46438023]
[1766082376739,0.001,2852.0,2851.2,9.96097965]
[1766082376927,0.568,2852.0,2851.2,9.96097965]
[1766082377128,0.568,2852.0,2850.9,10.42571796]
[1766082377332,6.5186,2851.9,2851.0,0.46438023]
[1766082377538,0.568,2852.0,2850.4,3.91370662]
[1766082377539,4.8313,2851.7,2850.7,4.07482913]
[1766082377712,6.5186,2851.6,2850.9,0.46438023]
[1766082377914,6.5186,2851.3,2850.5,4.53948511]
[1766082378249,6.5186,2851.3,2850.4,4.6534]
[1766082378250,6.5186,2851.0,2850.4,3.50821072]
[1766082378448,6.5186,2851.0,2850.2,2.3673]
[1766082378747,0.567,2851.2,2850.1,0.46438023]
[1766082378913,6.5186,2851.1,2850.1,1.03138023]
[1766082379113,6.5186,2851.1,2850.4,3.50820443]
[1766082379311,6.5186,2851.1,2850.3,0.46438023]
[1766082379312,6.5186,2851.1,2850.3,3.97266888]
[1766082379553,0.567,2851.2,2850.0,0.002]
[1766082379554,4.8313,2850.9,2850.0,0.002]
[1766082379713,6.5186,2850.7,2850.0,0.002]
[1766082379908,0.567,2850.7,2850.0,0.002]
[1766082380113,0.07357578,2850.6,2849.2,3.50969761]
[1766082380416,6.5186,2850.3,2849.2,1.91432372]
[1766082380728,7.0856,2850.3,2849.3,0.46438023]
[1766082381113,7.0856,2850.3,2849.6,3.50925806]
[1766082381313,7.0856,2850.3,2849.4,3.50947674]
[1766082381863,7.0856,2850.3,2849.3,3.97390504]
[1766082381864,0.567,2850.3,2849.3,3.50958435]
[1766082382028,0.567,2850.3,2849.4,6.4537]
[1766082382533,6.5186,2850.2,2849.3,3.97401417]
[1766082382714,0.567,2850.3,2849.3,0.46438023]
[1766082382918,0.567,2850.3,2849.3,3.97391032]
[1766082383121,1.6873,2850.1,2849.3,3.97391032]
[1766082383546,6.5186,2850.1,2849.3,3.97391032]
[1766082383743,6.5186,2850.1,2849.3,3.50958307]
[1766082384247,6.5186,2850.1,2849.3,7.01921701]
[1766082384453,6.5186,2850.1,2849.3,3.50958307]
[1766082384869,0.567,2850.3,2849.2,0.567]
[1766082385066,1.6873,2850.0,2848.7,1.8003]
[1766082385356,1.6873,2849.6,2848.7,2.3673]
[1766082385559,1.6873,2849.6,2849.0,3.51000168]
[1766082385726,1.6873,2849.6,2849.0,0.46438023]
[1766082385927,4.8313,2849.7,2849.0,0.46438023]
[1766082386358,4.8313,2849.7,2848.9,8.16352671]
[1766082386359,6.5186,2849.7,2848.8,0.002]
[1766082386538,6.5186,2849.6,2848.8,0.002]
[1766082386833,6.5186,2849.6,2848.8,3.51223248]
[1766082387222,0.64057578,2849.9,2848.8,3.51223248]
[1766082387426,1.6873,2849.3,2848.6,3.51041139]
[1766082387758,0.07357578,2849.6,2848.5,3.97699985]
[1766082387759,6.5186,2849.2,2848.5,3.97699985]
[1766082387939,4.8313,2848.8,2848.5,0.002]
[1766082388751,2.2543,2849.0,2848.5,0.002]
[1766082389070,1.6873,2849.3,2848.5,0.002]
[1766082389229,2.2543,2849.3,2848.5,0.002]
[1766082389426,0.567,2849.3,2848.5,6.4557]
[1766082389732,6.5186,2849.2,2848.5,0.002]
[1766082390154,6.5186,2849.5,2848.5,0.002]
[1766082390455,6.5186,2849.9,2848.5,0.407504]
[1766082390752,0.46438023,2850.1,2849.1,6.4537]
[1766082391060,7.0856,2850.2,2849.1,0.567]
[1766082391271,1.6873,2850.5,2849.3,4.6534]
[1766082391429,6.5186,2850.5,2849.4,6.4537]
[1766082391624,6.5186,2850.5,2849.5,0.567]
[1766082391826,0.567,2850.7,2849.7,6.4537]
[1766082392249,1.03138023,2850.7,2849.7,6.4537]
[1766082392459,5.3983,2850.7,2849.7,6.4537]
[1766082392659,0.001,2850.2,2849.8,1.34722289]
[1766082393456,6.5196,2850.2,2849.6,0.46438023]
[1766082394045,6.5196,2850.2,2849.6,3.97363472]
[1766082394261,6.5196,2850.2,2849.6,0.46438023]
[1766082394465,6.5196,2850.2,2849.6,3.97359636]
[1766082395144,6.5196,2850.2,2849.5,0.46438023]
[1766082395349,6.5196,2850.2,2849.6,3.50926445]
[1766082395543,0.001,2850.2,2849.6,3.50926445]
[1766082395749,0.001,2850.2,2849.5,5.7740229]
[1766082395926,4.8313,2850.1,2849.3,0.567]
[1766082396125,4.8313,2849.9,2849.3,0.567]
[1766082396355,5.48316,2849.9,2849.3,3.50955038]
[1766082396748,5.48316,2849.9,2849.4,3.50950096]
[1766082396951,5.48316,2849.9,2849.2,3.50972666]
[1766082396952,5.48316,2849.9,2849.3,3.50958372]
[1766082397158,5.48316,2849.9,2849.1,5.31015768]
[1766082397159,5.48316,2849.9,2849.4,3.50948883]
[1766082397361,4.8313,2849.9,2849.4,3.50948883]
[1766082397549,0.567,2850.0,2849.5,3.50932466]
[1766082397875,5.3993,2850.2,2849.5,7.01871227]
[1766082398057,5.3993,2850.2,2849.4,8.81932154]
[1766082398236,7.0866,2850.2,2849.4,1.8003]
[1766082398569,4.8313,2850.0,2849.3,3.50963053]
[1766082399064,1.6873,2849.9,2849.3,3.50963053]
[1766082400329,4.8313,2850.0,2849.3,2.26468023]
[1766082400528,0.70866,2850.1,2849.3,2.26468023]
[1766082401566,0.64057578,2850.6,2849.3,0.002]
[1766082401749,6.5186,2850.4,2849.5,1.8003]
[1766082402132,0.07357578,2850.8,2849.6,1.8003]
[1766082402333,0.567,2850.7,2850.0,1.8003]
[1766082402538,0.54718758,2850.6,2850.0,1.8003]
[1766082402732,0.54718758,2850.6,2849.6,3.50922955]
[1766082402933,4.9936,2850.4,2849.6,3.50922955]
[1766082403132,6.679,2850.4,2849.6,3.50922955]
[1766082403338,4.9936,2850.3,2849.6,3.50922955]
[1766082403664,6.679,2850.3,2849.6,3.50926393]
[1766082404052,6.679,2850.3,2849.4,5.88517985]
[1766082404263,7.3469,2850.3,2849.4,2.3757]
[1766082404435,7.3469,2850.3,2849.6,0.46438023]
[1766082404839,6.679,2850.2,2849.4,4.07650304]
[1766082405138,4.9936,2850.1,2849.4,4.07650304]
[1766082405856,4.9936,2850.1,2849.3,0.002]
[1766082406061,6.679,2849.9,2849.3,0.002]
[1766082406467,1.6854,2849.6,2848.7,8.28390082]
[1766082406771,0.07357578,2849.8,2848.6,1.8107]
[1766082406772,1.6854,2849.2,2848.6,0.002]
[1766082406943,6.679,2849.2,2848.6,0.002]
[1766082407379,4.9936,2849.2,2848.6,0.002]
[1766082407565,4.9936,2849.3,2848.7,3.51036689]
[1766082407874,4.9936,2849.3,2848.6,0.002]
[1766082407875,5.72555758,2849.3,2848.8,3.51022464]
[1766082408175,4.9936,2849.4,2848.6,3.51244066]
[1766082408476,4.9936,2849.3,2848.6,0.002]
[1766082409201,0.567,2849.5,2848.6,6.5843]
[1766082409372,1.2916,2849.5,2848.6,6.5843]
[1766082409572,3.5084778,2850.3,2848.7,1.8087]
[1766082409763,0.46438023,2849.8,2849.4,0.002]
[1766082409970,0.46438023,2849.4,2848.6,0.002]
[1766082410168,0.46438023,2849.4,2847.9,4.7736]
[1766082410169,1.6854,2848.8,2847.8,1.8107]
[1766082410476,6.679,2848.5,2847.8,0.002]
[1766082411045,4.9936,2848.5,2847.8,0.002]
[1766082411646,4.9936,2848.5,2847.8,0.46638023]
[1766082412045,5.7182,2848.5,2847.8,0.002]
[1766082412477,4.9936,2848.3,2847.7,0.002]
[1766082412783,4.9936,2848.1,2847.7,0.002]
[1766082413089,6.679,2848.8,2847.9,1.8087]
[1766082413580,6.679,2848.7,2847.9,1.8087]
[1766082413751,4.9936,2848.4,2847.8,1.03138023]
[1766082414380,4.9936,2848.4,2847.7,0.002]
[1766082414586,4.9936,2848.3,2847.7,0.002]
[1766082415486,6.679,2848.3,2847.7,0.002]
[1766082415975,6.679,2848.3,2847.7,3.51359833]
[1766082416175,6.679,2848.3,2847.7,0.002]
[1766082416378,4.9936,2848.2,2847.7,0.002]
[1766082416881,4.9936,2848.2,2847.5,0.002]
[1766082417063,0.7246,2848.3,2847.5,3.5138525]
[1766082417253,0.7246,2848.3,2847.5,7.025705]
[1766082417450,7.4036,2848.3,2847.5,0.002]
[1766082417652,0.57836183,2848.2,2847.5,0.002]
[1766082417853,1.6854,2847.7,2847.2,0.002]
[1766082418564,6.679,2847.6,2847.1,0.002]
[1766082418776,0.567,2847.7,2846.8,0.567]
[1766082418949,6.679,2847.5,2846.8,4.07968033]
[1766082419153,6.679,2847.5,2846.8,4.0797021]
[1766082419359,6.679,2847.5,2846.9,0.46438023]
[1766082419753,1.6854,2847.5,2846.9,0.46438023]
[1766082419951,0.567,2847.7,2846.9,2.8064304]
[1766082420178,0.567,2847.7,2847.0,6.5823]
[1766082420379,1.6854,2847.4,2846.5,0.002]
[1766082420681,7.246,2847.3,2846.5,0.002]
[1766082420886,0.7246,2847.2,2846.5,0.002]
[1766082421055,7.246,2847.3,2846.5,0.002]
[1766082421653,1.8826,2847.2,2846.5,0.002]
[1766082421854,30.07357578,2847.2,2845.7,3.51404601]
[1766082422085,4.6837,2846.9,2845.8,6.5337]
[1766082422250,0.567,2846.9,2846.1,1.7704]
[1766082422448,0.567,2846.9,2846.2,10.04712878]
[1766082422681,0.567,2846.9,2845.9,0.567]
[1766082422864,7.1333,2846.9,2846.2,3.51344632]
[1766082423066,7.1333,2846.9,2846.1,3.51348156]
[1766082423261,7.1333,2846.9,2846.0,3.51369446]
[1766082423262,4.6837,2846.8,2845.9,0.567]
[1766082423466,4.6837,2846.8,2845.9,4.08078324]
[1766082423467,0.52507,2846.7,2845.9,4.08078324]
[1766082423658,0.52507,2846.7,2846.0,3.51363414]